fUSD/lending_fUSD_20240328
["ID","MTS","AMOUNT","RATE_DAILY","PERIOD"]
[320860521,1711647047422,-576.73,0.00049315,120]
[320860523,1711647047431,-500.0,0.00049315,120]
[320860525,1711647047441,-168.27491578,0.00049315,120]
[320860527,1711647047450,-1733.32,0.00049315,120]
[320860529,1711647047459,-986.45,0.00049315,120]
[320860531,1711647047468,-3110.38,0.00049315,120]
[320860533,1711647047478,-1410.34,0.00049315,120]
[320860535,1711647047486,-500.0,0.00049315,120]
[320860537,1711647047495,-1109.07,0.00049315,120]
[320860539,1711647047504,-762.35,0.00049315,120]
[320860542,1711647047517,-500.0,0.00049315,120]
[320860544,1711647047527,-247.98649716,0.00049315,120]
[320860547,1711647047544,-1486.15350284,0.00049315,120]
[320860549,1711647047553,-1881.54,0.00049315,120]
[320860551,1711647047562,-1010.04,0.00049315,120]
[320860553,1711647047571,-702.86,0.00049315,120]
[320860555,1711647047581,-4599.97,0.00049315,120]
[320860557,1711647047591,-17296.93,0.00049315,120]
[320860559,1711647047600,-1279.4,0.00049315,120]
[320860561,1711647047609,-500.0,0.00049315,120]
[320860563,1711647047619,-1449.91,0.00049315,120]
[320860565,1711647047629,-1449.91,0.00049315,120]
[320860567,1711647047638,-1449.91,0.00049315,120]
[320860569,1711647047647,-1449.91,0.00049315,120]
[320860571,1711647047657,-1449.91,0.00049315,120]
[320860573,1711647047665,-1813.42,0.00049315,120]
[320860602,1711647047918,-1178.07,0.00049315,120]
[320860604,1711647047928,-500.0,0.00049315,120]
[320860606,1711647047937,-2564.29,0.00049315,120]
[320860608,1711647047947,-553.16,0.00049315,7]
[320860610,1711647047956,-2925.08,0.00049315,120]
[320860612,1711647047965,-500.0,0.00049315,120]
[320860614,1711647047975,-1531.19,0.00049315,120]
[320860616,1711647047984,-304.61732832,0.00049315,120]
[320860618,1711647047993,-4524.46,0.00049315,120]
[320860619,1711647048002,-667.32,0.00049315,120]
[320860622,1711647048011,-655.94,0.00049315,120]
[320860623,1711647048021,-1354.31,0.00049315,120]
[320860625,1711647048030,-2112.44,0.00049315,120]
[320860627,1711647048040,-3242.44,0.00049315,120]
[320860629,1711647048048,-631.2551772,0.00049315,120]
[320860632,1711647048058,-671.21,0.00049315,120]
[320860634,1711647048068,-2974.71,0.00049315,120]
[320860636,1711647048078,-545.90066814,0.00049315,120]
[320860638,1711647048088,-2452.42,0.00049315,120]
[320860640,1711647048097,-2068.39,0.00049315,120]
[320860642,1711647048106,-942.86762155,0.00049315,120]
[320860682,1711647048473,-474.21237845,0.00049315,120]
[320860684,1711647048483,-682.76,0.00049315,120]
[320860686,1711647048492,-500.0,0.00049315,120]
[320860688,1711647048501,-2865.85,0.00049315,120]
[320860690,1711647048511,-2455.19,0.00049315,120]
[320860692,1711647048520,-81.28762155,0.00049315,120]
[320860693,1711647048532,-7106.04237845,0.00049315,120]
[320860694,1711647048541,-914.42,0.00049315,120]
[320860695,1711647048550,-1766.89,0.00049315,120]
[320860696,1711647048560,-2576.92,0.00049315,21]
[320860697,1711647048569,-839.19117925,0.00049315,120]
[320860698,1711647048581,-692.41882075,0.00049315,120]
[320860699,1711647048593,-578.23,0.00049315,120]
[320860701,1711647048603,-2216.7,0.00049315,120]
[320860704,1711647048613,-744.15,0.00049315,120]
[320860706,1711647048623,-507.65124385,0.00049315,120]
[320860707,1711647048632,-870.54485631,0.00049315,120]
[320860793,1711647049441,-316.18174712,0.00049214,4]
[320860795,1711647049450,-691.98202412,0.00049214,2]
[320860797,1711647049460,-78.86514369,0.00049315,120]
[320860799,1711647049470,-338.02688438,0.00049315,120]
[320860802,1711647049483,-251.37311562,0.00049315,120]
[320860804,1711647049492,-253.52103498,0.00049315,120]
[320860807,1711647049515,-246.47896502,0.00049315,120]
[320860809,1711647049524,-258.61299618,0.00049315,120]
[320860811,1711647049536,-361.26700382,0.00049315,120]
[320860813,1711647049546,-2181.81,0.00049315,120]
[320860815,1711647049555,-1698.02,0.00049315,120]
[320860817,1711647049564,-439.90299618,0.00049315,120]
[320860820,1711647049579,-420.50577342,0.00049315,120]
[320861712,1711647195979,2095.9249161,0.00040765,120]
[320861714,1711647934208,-214.86376505,0.00028999,2]
[320861715,1711647934228,-350.0,0.00029,3]
[320861716,1711647934249,-400.0,0.00031,3]
[320861717,1711647934270,-450.0,0.00033,3]
[320861718,1711647934290,-150.0,0.00034548,10]
[320861719,1711647934309,-195.0,0.00038356,2]
[320861720,1711647934330,-166.07677322,0.00038499,2]
[320861721,1711647934350,-300.0,0.00038599,2]
[320861722,1711647934371,-228.0,0.000387,2]
[320861723,1711647934391,-166.0767732,0.00043994,2]
[320861724,1711647934411,-439.85364439,0.00044382,30]
[320861725,1711647934433,-317.11,0.00045241,2]
[320861726,1711647934450,-893.5695,0.00046564,2]
[320861727,1711647934471,-1330.52,0.00047205,120]
[320861728,1711647934491,-317.11,0.00047505,2]
[320861729,1711647934512,-1500.0,0.00047718,120]
[320861730,1711647934531,-156.0,0.00047733,2]
[320861731,1711647934551,-250.0,0.00047757,112]
[320861732,1711647934570,-159.88,0.00047757,15]
[320861733,1711647934590,-157.47,0.00047806,2]
[320861734,1711647934608,-157.54036189,0.00047829,30]
[320861735,1711647934627,-183.0,0.00047872,2]
[320861736,1711647934647,-158.12704685,0.00047872,30]
[320861737,1711647934670,-370.96,0.00047899,120]
[320861738,1711647934690,-57.38203534,0.00047899,2]
[320861739,1711648014110,-180.58728142,0.00047899,2]
[320861749,1711648232009,-157.54036188,0.00047785,30]
[320861750,1711648232019,-300.0,0.00047799,2]
[320861751,1711648232029,-174.691159,0.0004792,30]
[320861752,1711648232038,-175.33914919,0.00047963,30]
[320861753,1711648232050,-170.65365333,0.00047981,2]
[320861754,1711648232060,-411.86235684,0.00047981,2]
[320861755,1711648232080,-719.74907304,0.00047981,2]
[320861756,1711648232089,-308.33333334,0.00047981,2]
[320861757,1711648232099,-183.0,0.00047984,2]
[320861758,1711648232109,-157.54036188,0.00047988,30]
[320861759,1711648232120,-1131.99646541,0.00047996,2]
[320861760,1711648232130,-691.98202412,0.00048068,2]
[320861761,1711648232139,-431.48554537,0.00048069,2]
[320861762,1711648232152,-474.91445463,0.00048069,2]
[320861763,1711648232161,-161.35,0.00048071,2]
[320861764,1711648232170,-121.55490778,0.0004808,4]
[320861765,1711648232183,-306.02183946,0.0004808,4]
[320861767,1711648232192,-270.38829693,0.00048081,7]
[320861769,1711648232229,-7603.85073837,0.00048081,7]
[320861779,1711648237871,-1878.4510479,0.00048081,7]
[320861780,1711648237983,-1371.09216847,0.00048081,7]
[320861781,1711648238096,-596.04655466,0.00048081,7]
[320861782,1711648238211,-888.95229078,0.00048081,7]
[320861783,1711648238270,-385.46466382,0.00048081,7]
[320861810,1711648239868,-3183.80000012,0.00048081,7]
[320861812,1711648239880,-838.38660546,0.00048081,7]
[320861824,1711648239980,-976.68977929,0.00048081,7]
[320861825,1711648239991,-1006.632,0.00048081,7]
[320861827,1711648240003,-63583.21979977,0.00048081,7]
[320861830,1711648240018,-1063.96311532,0.00048081,7]
[320861834,1711648240049,-167928.29385811,0.00048081,7]
[320861836,1711648240058,-499.99,0.00048081,2]
[320861837,1711648240067,-167.01,0.00048096,2]
[320861839,1711648240077,-156.47,0.00048129,2]
[320861841,1711648240086,-1085.14430894,0.00048329,2]
[320861843,1711648240095,-1101.00625119,0.00048329,2]
[320861845,1711648240104,-1849.02,0.00048356,2]
[320861847,1711648240114,-694.88,0.00048493,2]
[320861849,1711648240123,-150.0,0.00048493,2]
[320861851,1711648240133,-300.0,0.00048493,2]
[320861853,1711648240142,-150.0,0.00048493,2]
[320861855,1711648240151,-322.62,0.00048493,2]
[320861857,1711648240160,-415.51,0.00048493,2]
[320861859,1711648240169,-240.39,0.00048493,2]
[320861861,1711648240178,-150.0,0.00048493,2]
[320861863,1711648240187,-150.0,0.00048493,2]
[320861865,1711648240196,-300.0,0.00048541,30]
[320861867,1711648240205,-165.78,0.00048582,2]
[320861869,1711648240214,-175.33914919,0.00048684,30]
[320861871,1711648240248,-300.0,0.00048712,30]
[320861873,1711648240287,-1131.61142987,0.00048727,2]
[320861875,1711648240297,-170.65365333,0.00048735,2]
[320861877,1711648240306,-1131.99646541,0.0004874,2]
[320861878,1711648240315,-211.32052,0.0004882,44]
[320861880,1711648240325,-157.54036188,0.00048885,30]
[320861882,1711648240334,-157.84825202,0.00048888,30]
[320861884,1711648240343,-157.54036188,0.00049161,30]
[320861886,1711648240352,-168.02168864,0.00049215,14]
[320861888,1711648240362,-24138.4359,0.00049215,2]
[320861890,1711648240371,-174.74,0.00049305,2]
[320861892,1711648240380,-213.17723806,0.00049312,2]
[320861894,1711648240389,-548.84635004,0.00049313,4]
[320861896,1711648240398,-232.398633,0.00049313,4]
[320861899,1711648240407,-155.25746604,0.00049314,4]
[320861902,1711648240416,-2383.17817368,0.00049314,4]
[320861904,1711648240426,-500.0,0.00049315,120]
[320861907,1711648240435,-501.02991706,0.00049315,120]
[320861909,1711648240445,-500.0,0.00049315,120]
[320861910,1711648240455,-503.45826982,0.00049315,120]
[320861911,1711648240466,-503.21904475,0.00049315,120]
[320861912,1711648240476,-500.0,0.00049315,120]
[320861913,1711648240487,-500.0,0.00049315,120]
[320861914,1711648240497,-500.0,0.00049315,120]
[320861916,1711648240507,-225.33931423,0.00049315,2]
[320861917,1711648240517,-500.0,0.00049315,120]
[320861920,1711648240527,-500.0,0.00049315,120]
[320861922,1711648240541,-300.56774659,0.00049315,120]
[320861925,1711648240553,-502.01857313,0.00049315,120]
[320861928,1711648240563,-500.0,0.00049315,120]
[320861931,1711648240574,-503.9228519,0.00049315,120]
[320861935,1711648240584,-500.0,0.00049315,120]
[320861938,1711648240595,-500.0,0.00049315,120]
[320861941,1711648240605,-209.18835168,0.00049315,120]
[320861944,1711648240615,-500.0,0.00049315,120]
[320861947,1711648240625,-500.0,0.00049315,2]
[320861950,1711648240636,-500.0,0.00049315,120]
[320861953,1711648240646,-500.0,0.00049315,120]
[320861956,1711648240657,-500.0,0.00049315,120]
[320861960,1711648240667,-500.0,0.00049315,2]
[320861963,1711648240677,-500.0,0.00049315,120]
[320861966,1711648240688,-485.84105323,0.00049315,120]
[320861969,1711648240698,-500.0,0.00049315,120]
[320861972,1711648240708,-500.0,0.00049315,120]
[320861975,1711648240718,-500.0,0.00049315,120]
[320861978,1711648240728,-500.0,0.00049315,120]
[320861981,1711648240739,-500.0,0.00049315,120]
[320861985,1711648240750,-631.00105295,0.00049315,120]
[320861988,1711648240760,-500.0,0.00049315,120]
[320861990,1711648240770,-500.0,0.00049315,120]
[320861992,1711648240781,-500.0,0.00049315,120]
[320861994,1711648240791,-233.51744222,0.00049315,120]
[320861996,1711648240801,-500.0,0.00049315,120]
[320861998,1711648240811,-500.0,0.00049315,120]
[320862001,1711648240822,-500.0,0.00049315,120]
[320862003,1711648240833,-500.0,0.00049315,120]
[320862005,1711648240847,-500.0,0.00049315,120]
[320862008,1711648240859,-500.0,0.00049315,120]
[320862010,1711648240871,-512.69730784,0.00049315,120]
[320862012,1711648240881,-448.42865315,0.00049315,120]
[320862014,1711648240893,-602.67147763,0.00049315,120]
[320862016,1711648240904,-500.0,0.00049315,120]
[320862018,1711648240914,-500.0,0.00049315,120]
[320862020,1711648240924,-500.0,0.00049315,120]
[320862023,1711648240935,-500.0,0.00049315,120]
[320862025,1711648240946,-500.0,0.00049315,120]
[320862027,1711648240956,-166.81517197,0.00049315,120]
[320862029,1711648240965,-534.62062253,0.00049315,120]
[320862031,1711648240975,-500.0,0.00049315,120]
[320862033,1711648240985,-500.0,0.00049315,120]
[320862035,1711648240995,-256.14840475,0.00049315,120]
[320862037,1711648241005,-500.0,0.00049315,120]
[320862039,1711648241014,-513.04,0.00049315,120]
[320862041,1711648241025,-512.76,0.00049315,120]
[320862043,1711648241034,-500.0,0.00049315,120]
[320862045,1711648241051,-500.0,0.00049315,120]
[320862047,1711648241061,-500.0,0.00049315,120]
[320862049,1711648241072,-192.79464801,0.00049315,120]
[320862051,1711648241083,-500.00000001,0.00049315,120]
[320862053,1711648241092,-500.0,0.00049315,120]
[320862056,1711648241103,-157.2519792,0.00049315,120]
[320862058,1711648241113,-500.0,0.00049315,120]
[320862059,1711648241126,-500.0,0.00049315,2]
[320862060,1711648241140,-500.0,0.00049315,120]
[320862061,1711648241150,-500.0,0.00049315,120]
[320862062,1711648241160,-500.0,0.00049315,120]
[320862063,1711648241170,-500.0,0.00049315,120]
[320862064,1711648241180,-500.0,0.00049315,120]
[320862065,1711648241191,-500.0,0.00049315,120]
[320862066,1711648241200,-598.55001,0.00049315,120]
[320862067,1711648241210,-500.0,0.00049315,120]
[320862068,1711648241219,-500.0,0.00049315,120]
[320862069,1711648241229,-500.0,0.00049315,120]
[320862070,1711648241239,-500.0,0.00049315,120]
[320862071,1711648241248,-500.0,0.00049315,60]
[320862072,1711648241258,-500.0,0.00049315,120]
[320862073,1711648241268,-500.0,0.00049315,120]
[320862074,1711648241277,-500.0,0.00049315,120]
[320862075,1711648241287,-670.05,0.00049315,120]
[320862076,1711648241296,-500.0,0.00049315,120]
[320862077,1711648241305,-552.08,0.00049315,120]
[320862078,1711648241314,-500.0,0.00049315,120]
[320862079,1711648241324,-500.0,0.00049315,120]
[320862080,1711648241336,-500.0,0.00049315,120]
[320862081,1711648241345,-649.67493149,0.00049315,120]
[320862082,1711648241355,-500.0,0.00049315,120]
[320862083,1711648241365,-500.0,0.00049315,120]
[320862084,1711648241376,-500.0,0.00049315,120]
[320862085,1711648241385,-500.0,0.00049315,120]
[320862086,1711648241395,-500.0,0.00049315,120]
[320862087,1711648241404,-500.0,0.00049315,120]
[320862088,1711648241414,-500.0,0.00049315,120]
[320862089,1711648241423,-500.0,0.00049315,120]
[320862090,1711648241432,-508.19381738,0.00049315,120]
[320862091,1711648241442,-500.0,0.00049315,120]
[320862092,1711648241452,-500.0,0.00049315,120]
[320862093,1711648241462,-500.0,0.00049315,120]
[320862094,1711648241473,-500.0,0.00049315,2]
[320862095,1711648241483,-500.0,0.00049315,120]
[320862096,1711648241494,-571.85,0.00049315,120]
[320862097,1711648241504,-565.1793687,0.00049315,120]
[320862098,1711648241515,-500.0,0.00049315,120]
[320862099,1711648241526,-500.0,0.00049315,120]
[320862100,1711648241536,-500.0,0.00049315,120]
[320862101,1711648241546,-1219.39,0.00049315,120]
[320862102,1711648241555,-503.55061836,0.00049315,120]
[320862103,1711648241565,-500.0,0.00049315,120]
[320862104,1711648241575,-500.0,0.00049315,120]
[320862105,1711648241587,-500.0,0.00049315,120]
[320862106,1711648241596,-516.50263157,0.00049315,120]
[320862107,1711648241607,-665.77,0.00049315,120]
[320862108,1711648241617,-500.0,0.00049315,120]
[320862109,1711648241629,-773.75,0.00049315,120]
[320862110,1711648241639,-500.0,0.00049315,120]
[320862111,1711648241650,-500.0,0.00049315,120]
[320862112,1711648241660,-500.0,0.00049315,120]
[320862113,1711648241670,-500.0,0.00049315,120]
[320862114,1711648241680,-500.0,0.00049315,120]
[320862115,1711648241691,-500.0,0.00049315,120]
[320862116,1711648241700,-500.0,0.00049315,120]
[320862117,1711648241710,-500.0,0.00049315,120]
[320862118,1711648241720,-500.0,0.00049315,120]
[320862119,1711648241730,-500.0,0.00049315,120]
[320862120,1711648241740,-500.0,0.00049315,120]
[320862121,1711648241751,-500.0,0.00049315,120]
[320862122,1711648241762,-500.0,0.00049315,120]
[320862123,1711648241773,-610.77489557,0.00049315,120]
[320862124,1711648241783,-500.0,0.00049315,120]
[320862125,1711648242030,-1064.91,0.00049315,120]
[320862126,1711648242041,-500.0,0.00049315,120]
[320862127,1711648242052,-504.98618447,0.00049315,120]
[320862128,1711648242062,-500.0,0.00049315,120]
[320862129,1711648242081,-500.0,0.00049315,120]
[320862130,1711648242093,-500.0,0.00049315,120]
[320862131,1711648242103,-500.0,0.00049315,120]
[320862132,1711648242114,-502.94281353,0.00049315,120]
[320862133,1711648242127,-500.0,0.00049315,120]
[320862134,1711648242138,-500.0,0.00049315,120]
[320862135,1711648242149,-500.0,0.00049315,120]
[320862136,1711648242160,-705.85,0.00049315,120]
[320862137,1711648242170,-800.0,0.00049315,120]
[320862138,1711648242181,-500.0,0.00049315,120]
[320862139,1711648242191,-500.0,0.00049315,120]
[320862140,1711648242201,-500.0,0.00049315,120]
[320862141,1711648242213,-500.0,0.00049315,120]
[320862142,1711648242223,-500.0,0.00049315,120]
[320862143,1711648242233,-505.65204826,0.00049315,120]
[320862144,1711648242244,-500.0,0.00049315,15]
[320862145,1711648242254,-500.0,0.00049315,120]
[320862146,1711648242264,-500.0,0.00049315,120]
[320862147,1711648242274,-720.27,0.00049315,120]
[320862148,1711648242284,-500.0,0.00049315,120]
[320862149,1711648242296,-500.0,0.00049315,120]
[320862150,1711648242307,-500.0,0.00049315,120]
[320862151,1711648242317,-500.0,0.00049315,120]
[320862152,1711648242328,-500.0,0.00049315,120]
[320862153,1711648242340,-310.75509441,0.00049315,120]
[320862154,1711648242350,-500.0,0.00049315,120]
[320862155,1711648242362,-500.0,0.00049315,120]
[320862156,1711648242376,-500.0,0.00049315,120]
[320862157,1711648242387,-300.0,0.00049315,2]
[320862158,1711648242398,-500.0,0.00049315,120]
[320862159,1711648242409,-500.0,0.00049315,120]
[320862160,1711648242419,-500.0,0.00049315,120]
[320862161,1711648242429,-577.27,0.00049315,120]
[320862162,1711648242440,-500.0,0.00049315,120]
[320862163,1711648242450,-539.82,0.00049315,120]
[320862164,1711648242461,-500.0,0.00049315,120]
[320862165,1711648242472,-743.85,0.00049315,120]
[320862166,1711648242482,-500.0,0.00049315,120]
[320862167,1711648242494,-500.0,0.00049315,120]
[320862168,1711648242503,-446.9348037,0.00049315,120]
[320862169,1711648242512,-500.0,0.00049315,120]
[320862170,1711648242521,-377.48638019,0.00049315,120]
[320862171,1711648242530,-500.0,0.00049315,120]
[320862172,1711648242540,-500.0,0.00049315,120]
[320862173,1711648242549,-549.9,0.00049315,120]
[320862174,1711648242560,-515.19958456,0.00049315,120]
[320862175,1711648242569,-500.0,0.00049315,120]
[320862176,1711648242579,-500.0,0.00049315,120]
[320862177,1711648242589,-500.0,0.00049315,120]
[320862178,1711648242598,-500.0,0.00049315,120]
[320862179,1711648242607,-500.0,0.00049315,120]
[320862180,1711648242618,-500.0,0.00049315,120]
[320862181,1711648242632,-403.23394801,0.00049315,120]
[320862182,1711648242641,-500.0,0.00049315,120]
[320862183,1711648242651,-665.46,0.00049315,120]
[320862184,1711648242661,-1000.0,0.00049315,120]
[320862185,1711648242670,-500.0,0.00049315,120]
[320862186,1711648242679,-500.0,0.00049315,120]
[320862187,1711648242689,-523.67,0.00049315,120]
[320862188,1711648242698,-500.0,0.00049315,120]
[320862189,1711648242708,-500.0,0.00049315,120]
[320862190,1711648242717,-500.0,0.00049315,120]
[320862191,1711648242726,-500.0,0.00049315,120]
[320862192,1711648242736,-502.47271297,0.00049315,120]
[320862193,1711648242746,-500.0,0.00049315,120]
[320862194,1711648242755,-503.03175908,0.00049315,120]
[320862195,1711648242764,-500.0,0.00049315,120]
[320862196,1711648242773,-500.0,0.00049315,120]
[320862197,1711648242783,-500.0,0.00049315,120]
[320862198,1711648242792,-500.0,0.00049315,120]
[320862200,1711648242802,-260.12,0.00049315,120]
[320862202,1711648242811,-500.0,0.00049315,2]
[320862204,1711648242821,-500.0,0.00049315,120]
[320862206,1711648242830,-500.0,0.00049315,120]
[320862207,1711648242840,-500.0,0.00049315,120]
[320862208,1711648242849,-500.0,0.00049315,120]
[320862209,1711648242858,-500.0,0.00049315,120]
[320862210,1711648242867,-500.0,0.00049315,120]
[320862211,1711648242879,-500.0,0.00049315,120]
[320862212,1711648242888,-698.95,0.00049315,120]
[320862213,1711648242897,-500.0,0.00049315,120]
[320862214,1711648242906,-500.0,0.00049315,120]
[320862215,1711648242916,-500.0,0.00049315,120]
[320862216,1711648242926,-500.0,0.00049315,120]
[320862217,1711648242935,-569.15,0.00049315,120]
[320862218,1711648242945,-1033.15,0.00049315,120]
[320862219,1711648242954,-1004.93,0.00049315,120]
[320862220,1711648242964,-500.0,0.00049315,120]
[320862221,1711648242973,-586.32,0.00049315,120]
[320862222,1711648242982,-500.0,0.00049315,120]
[320862223,1711648242992,-500.0,0.00049315,120]
[320862224,1711648243001,-1084.32,0.00049315,120]
[320862225,1711648243011,-500.0,0.00049315,120]
[320862226,1711648243020,-751.29,0.00049315,120]
[320862227,1711648243029,-506.07727027,0.00049315,120]
[320862228,1711648243039,-1310.76,0.00049315,120]
[320862229,1711648243051,-500.0,0.00049315,120]
[320862230,1711648243060,-500.0,0.00049315,120]
[320862231,1711648243069,-500.0,0.00049315,120]
[320862232,1711648243078,-1083.38,0.00049315,120]
[320862233,1711648243089,-500.0,0.00049315,120]
[320862234,1711648243098,-696.55,0.00049315,120]
[320862235,1711648243108,-500.0,0.00049315,120]
[320862236,1711648243117,-500.0,0.00049315,120]
[320862237,1711648243128,-500.0,0.00049315,120]
[320862238,1711648243138,-819.36,0.00049315,120]
[320862239,1711648243147,-500.0,0.00049315,120]
[320862240,1711648243156,-500.0,0.00049315,120]
[320862241,1711648243165,-500.0,0.00049315,120]
[320862242,1711648243174,-500.0,0.00049315,120]
[320862243,1711648243184,-542.36,0.00049315,120]
[320862244,1711648243193,-713.87,0.00049315,120]
[320862245,1711648243202,-500.0,0.00049315,120]
[320862246,1711648243211,-500.0,0.00049315,120]
[320862247,1711648243220,-500.0,0.00049315,120]
[320862248,1711648243229,-521.50302585,0.00049315,120]
[320862249,1711648243238,-500.0,0.00049315,120]
[320862250,1711648243247,-585.67,0.00049315,30]
[320862251,1711648243257,-500.0,0.00049315,120]
[320862252,1711648243266,-500.0,0.00049315,120]
[320862253,1711648243275,-527.28,0.00049315,120]
[320862254,1711648243284,-500.0,0.00049315,120]
[320862255,1711648243293,-500.0,0.00049315,120]
[320862256,1711648243302,-500.0,0.00049315,120]
[320862257,1711648243311,-500.0,0.00049315,120]
[320862258,1711648243320,-500.0,0.00049315,120]
[320862259,1711648243329,-500.0,0.00049315,120]
[320862260,1711648243339,-1171.77,0.00049315,120]
[320862261,1711648243348,-503.17,0.00049315,120]
[320862262,1711648243356,-500.0,0.00049315,120]
[320862263,1711648243365,-500.0,0.00049315,120]
[320862264,1711648243376,-544.63,0.00049315,120]
[320862265,1711648243385,-500.0,0.00049315,120]
[320862266,1711648243394,-500.0,0.00049315,120]
[320862267,1711648243403,-500.0,0.00049315,120]
[320862268,1711648243412,-641.86,0.00049315,120]
[320862269,1711648243422,-500.0,0.00049315,120]
[320862270,1711648243430,-723.9,0.00049315,120]
[320862271,1711648243439,-644.1,0.00049315,120]
[320862272,1711648243449,-500.0,0.00049315,120]
[320862273,1711648243459,-1538.77,0.00049315,120]
[320862274,1711648243468,-500.0,0.00049315,120]
[320862275,1711648243477,-500.0,0.00049315,120]
[320862276,1711648243487,-500.0,0.00049315,120]
[320862277,1711648243497,-500.0,0.00049315,120]
[320862278,1711648243506,-500.0,0.00049315,120]
[320862279,1711648243516,-500.0,0.00049315,120]
[320862280,1711648243525,-500.0,0.00049315,120]
[320862281,1711648243534,-519.53,0.00049315,120]
[320862282,1711648243543,-500.0,0.00049315,120]
[320862283,1711648243553,-500.0,0.00049315,120]
[320862284,1711648243562,-1186.42,0.00049315,120]
[320862285,1711648243571,-838.4,0.00049315,120]
[320862286,1711648243580,-500.0,0.00049315,120]
[320862287,1711648243589,-500.0,0.00049315,120]
[320862288,1711648243598,-500.0,0.00049315,120]
[320862289,1711648243608,-748.46,0.00049315,120]
[320862290,1711648243617,-500.0,0.00049315,120]
[320862291,1711648243627,-506.90617353,0.00049315,120]
[320862292,1711648243636,-500.0,0.00049315,120]
[320862293,1711648243646,-500.0,0.00049315,120]
[320862294,1711648243655,-500.0,0.00049315,120]
[320862295,1711648243665,-500.0,0.00049315,120]
[320862296,1711648243674,-500.0,0.00049315,120]
[320862297,1711648243683,-500.0,0.00049315,120]
[320862298,1711648243692,-522.84278747,0.00049315,120]
[320862299,1711648243703,-500.0,0.00049315,120]
[320862300,1711648243713,-500.0,0.00049315,120]
[320862301,1711648243722,-500.0,0.00049315,120]
[320862302,1711648243732,-500.0,0.00049315,120]
[320862303,1711648243741,-500.0,0.00049315,120]
[320862304,1711648243751,-1181.45,0.00049315,120]
[320862305,1711648243760,-500.0,0.00049315,120]
[320862306,1711648243770,-500.0,0.00049315,120]
[320862307,1711648243779,-506.15246699,0.00049315,120]
[320862308,1711648243788,-505.49,0.00049315,120]
[320862309,1711648243798,-500.0,0.00049315,120]
[320862310,1711648243807,-500.0,0.00049315,120]
[320862311,1711648243816,-508.45462986,0.00049315,120]
[320862312,1711648243825,-500.0,0.00049315,120]
[320862313,1711648243835,-500.0,0.00049315,120]
[320862314,1711648243844,-1214.19,0.00049315,120]
[320862315,1711648243854,-500.0,0.00049315,120]
[320862316,1711648243863,-500.0,0.00049315,120]
[320862317,1711648243873,-500.0,0.00049315,120]
[320862318,1711648243883,-503.49445238,0.00049315,120]
[320862319,1711648243893,-500.0,0.00049315,120]
[320862320,1711648243903,-151.84612425,0.00049315,120]
[320862321,1711648243912,-500.0,0.00049315,120]
[320862322,1711648243922,-500.0,0.00049315,120]
[320862323,1711648243932,-1094.64,0.00049315,120]
[320862324,1711648243941,-500.0,0.00049315,120]
[320862325,1711648243951,-500.0,0.00049315,120]
[320862326,1711648243960,-500.0,0.00049315,120]
[320862327,1711648243970,-350.71,0.00049315,120]